Cogmind - Beta 14 @@@ ROGUE MODE // 2024.08.15 @ 13:50:35 Player: Heclapar Result: Destroyed by Y-45 Defender with Beam Rifle Performance ------------- Evolutions (1) 500 Regions Visited (4) 800 Robots Destroyed (82) 410 Value Destroyed (1871) 1871 Prototype IDs (5) 100 Alien Tech Used (0) 0 Bonus (543) 543 TOTAL SCORE: 4224 Bonus ------- High Alert Combat Kills 220 Follower Combat Kills 123 Entered Garrisons 200 Cogmind --------- Core Integrity 0/400 Matter 300/300 Energy 255/280 System Corruption 6% Temperature Cool (81) Movement Rolling (120) Ox2 Location -9/Garrison Parts ------- > --- POWER (1) -------- Cooled Ion Engine > --- PROPULSION (2) --- Armored Wheel Armored Wheel > --- UTILITY (4) ------ Cooling System High-capacity Storage Unit Signal Interpreter Improved Light Armor Plating > --- WEAPON (2) ------- Improved Medium Laser Improved Medium Laser > --- INVENTORY (20) --- Light Ion Engine Cooled Ion Engine Light Deuterium Engine Heat Sink Hardened Light Armor Plating Improved Light Armor Plating Improved Light Armor Plating Hacking Suite Authchip [Weapon] Beam Rifle Improved Medium Laser Improved Medium Laser Particle Cannon Autogun Rocket Launcher Mini Grenade Launcher Datajack Flail Peak State ------------ > --- POWER ------------ Cooled Ion Engine > --- PROPULSION ------- Armored Wheel Armored Wheel > --- UTILITY ---------- Cooling System High-capacity Storage Unit Signal Interpreter Improved Light Armor Plating > --- WEAPON ----------- Improved Medium Laser Improved Medium Laser > --- INVENTORY -------- Light Ion Engine Cooled Ion Engine Light Deuterium Engine Heat Sink Hardened Light Armor Plating Improved Light Armor Plating Improved Light Armor Plating Hacking Suite Authchip [Weapon] Beam Rifle Improved Medium Laser Improved Medium Laser Particle Cannon Autogun Rocket Launcher Mini Grenade Launcher Datajack Flail [Rating: 24] Favorites ----------- Power Light Ion Engine Engine Light Ion Engine Propulsion Armored Wheel Leg Aluminum Leg Wheel Armored Wheel Utility Signal Interpreter Device Cooling System Storage High-capacity Storage Unit Processor Signal Interpreter Protection Hardened Light Armor Plating Weapon Improved Medium Laser Energy Gun Improved Medium Laser Ballistic Gun Light Assault Rifle Launcher Rocket Launcher Build | -11 -10 -9 -9 -9 ------- Run | Yrd Mat Mat Sto Gar Slots Evolved 2 | . . 2 . . Power . | . . . . . Propulsion . | . . . . . Utility 2 | . . 2 . . Weapon . | . . . . . Parts Attached 42 | . 11 26 3 2 Power 6 | . 1 4 1 . Engine 6 | . 1 4 1 . Core . | . . . . . Reactor . | . . . . . Propulsion 9 | . 3 4 . 2 Treads . | . . . . . Leg 3 | . 3 . . . Wheel 6 | . . 4 . 2 Hover . | . . . . . Flight . | . . . . . Utility 9 | . 3 6 . . Device 2 | . 1 1 . . Storage 2 | . 1 1 . . Processor 1 | . 1 . . . Hackware . | . . . . . Protection 4 | . . 4 . . Artifact . | . . . . . Weapon 18 | . 4 12 2 . Energy Gun 11 | . 3 6 2 . Energy Cannon . | . . . . . Ballistic Gun 4 | . 1 3 . . Ballistic Cannon . | . . . . . Launcher 3 | . . 3 . . Special Weapon . | . . . . . Impact Weapon . | . . . . . Slashing Weapon . | . . . . . Piercing Weapon . | . . . . . Special Melee Weapon . | . . . . . Unidentified Prototypes 2 | . 1 1 . . Parts Lost 11 | . 3 6 . 2 Power 1 | . . 1 . . Propulsion 6 | . 1 3 . 2 Utility . | . . . . . Weapon 4 | . 2 2 . . Highest Loss Streak 2 | . 1 1 . 2 To Critical Strikes 1 | . 1 . . . Average Slot Usage (%) 95 | . 95 95 98 96 Engine 11 | . 13 10 11 11 Leg 9 | . 27 2 . . Wheel 13 | . . 18 22 18 Device 9 | . 8 9 11 11 Storage 12 | . 14 12 11 11 Processor 8 | . 2 11 11 11 Protection 6 | . . 8 11 11 Energy Gun 18 | . 19 17 17 22 Ballistic Gun 5 | . 8 4 3 . Peak Build Rating 24 | . 10 22 23 24 Average Rating 14 | . 7 17 21 22 On Entrance 13 | 6 6 10 21 23 Naked Turns . | . . . . . Heaviest Build 61 | 14 17 61 59 59 Greatest Support 28 | 20 20 28 22 24 Greatest Overweight (x) 4 | . 1 4 2 2 Average Overweight (x) 1 | . . 1 2 2 Largest Inventory Capacity 20 | . 10 20 20 20 Average Capacity 15 | . 8 18 20 20 Most Carried 20 | . 10 20 20 20 Average Carried 12 | . 7 14 18 19 Final Capacity 20 | 8 10 20 20 20 Final Carried 20 | 6 10 18 20 18 Class Distribution -------------------- 83% | Mutant 8% | Scavenger-Mutant 7% | Commander-Mutant Dominant Class ---------------- Mutant | -10/Materials Mutant | -9/Materials Commander-Mutant | -9/Storage Commander-Mutant | -9/Garrison Resources | -11 -10 -9 -9 -9 ----------- Run | Yrd Mat Mat Sto Gar Matter Collected 894 | 200 143 450 81 20 Remotely . | . . . . . Salvage Created 2713 | . 557 1860 280 16 Parts 163 | . 38 107 17 1 Haulers Intercepted 7 | . 1 4 2 . Recyclers Shooed 2 | . . 2 . . Parts Field Recycled . | . . . . . Retrieved Matter . | . . . . . Parts Self-Destructed . | . . . . . Prevented . | . . . . . Kills | -11 -10 -9 -9 -9 ------- Run | Yrd Mat Mat Sto Gar Combat Hostiles Destroyed 56 | . 15 36 4 1 Guns 46 | . 14 27 4 1 AOE 8 | . 1 7 . . Classes Destroyed 13 | . 6 6 . 1 Worker 2 | . 1 1 . . Builder 4 | . . 3 1 . Hauler 7 | . 1 4 2 . Recycler 2 | . . 2 . . Mechanic 2 | . . 2 . . Operator 3 | . 1 1 1 . Watcher 6 | . 2 4 . . Swarmer 17 | . 9 7 1 . Cutter 1 | . . . . 1 Grunt 26 | . 6 17 3 . Brawler 1 | . . 1 . . Duelist 1 | . . 1 . . Sentry 10 | . . 10 . . Best Kill Streak 10 | . 4 10 2 1 Combat Bots Only 5 | . 3 5 1 1 Max Kills in Single Turn 3 | . 1 3 2 1 Gunslinging . | . . . . . Exploded 3 | . 1 3 . . Melee . | . . . . . Uniques/NPCs Destroyed . | . . . . . Combat | -11 -10 -9 -9 -9 -------- Run | Yrd Mat Mat Sto Gar Hostile Shots Fired 294 | . 91 160 20 23 Missed 95 | . 30 54 7 4 Damage Taken 2452 | . 602 1374 161 315 Core 490 | . 87 266 42 95 Absorbed by Shields . | . . . . . Regen/Repaired (Parts) 112 | . . 33 79 . Core Remaining (%) 82 | 100 65 . . . Volleys Fired 229 | . 69 133 19 8 Largest 2 | . 2 2 2 2 Hottest 112 | . 90 112 112 112 Shots Fired 443 | . 135 254 38 16 Gun 435 | . 135 246 38 16 Cannon . | . . . . . Launcher 8 | . . 8 . . Special . | . . . . . Kinetic 87 | . 26 57 4 . Thermal 300 | . 61 189 34 16 Explosive 8 | . . 8 . . Electromagnetic 48 | . 48 . . . Robot Hit Streak 21 | . 8 21 9 3 Robot Miss Streak 9 | . 6 6 4 9 Penetration Max . | . . . . . Secondary Targets 6 | . 1 4 1 . Max Gunslinging Chain 1 | . 1 1 1 . Shots Hit Robots 254 | . 71 156 21 6 Core Hits 117 | . 33 72 9 3 Critical Kills . | . . . . . Critical Parts Destroyed . | . . . . . Critical Strikes 24 | . 6 16 1 1 Burn 23 | . 5 16 1 1 Corrupt 1 | . 1 . . . Melee Attacks . | . . . . . Impact . | . . . . . Slashing . | . . . . . Piercing . | . . . . . Sneak Attacks . | . . . . . Combat Hostiles . | . . . . . Follow-up Attacks . | . . . . . Damage Inflicted 4587 | . 938 3163 384 102 Guns 3719 | . 851 2382 384 102 Cannons . | . . . . . Explosions 868 | . 87 781 . . Melee . | . . . . . Ramming . | . . . . . Kinetic 429 | . 83 333 13 . Thermal 2992 | . 470 2049 371 102 Explosive 781 | . . 781 . . Electromagnetic 385 | . 385 . . . Impact . | . . . . . Slashing . | . . . . . Piercing . | . . . . . Highest Corruption 6 | . 6 6 6 6 Average Corruption 3 | . 4 2 6 6 Corruption Purged . | . . . . . Corruption Blocked . | . . . . . Effects 42 | . 9 24 6 3 Message Errors 11 | . 3 7 . 1 Matter Fused 10 | . 1 6 3 . Heat Flow Errors 5 | . 1 1 1 2 Energy Discharges 4 | . 1 3 . . Parts Fused 2 | . 1 1 . . Data Loss (minor) 7 | . 1 4 2 . Data Loss (major) 2 | . 1 1 . . Weapon Failures 1 | . . 1 . . Overload Shots . | . . . . . Overflow Damage 48 | . . 48 . . Projectiles . | . . . . . Explosions 48 | . . 48 . . Melee . | . . . . . Knockbacks . | . . . . . Impact . | . . . . . Kinetic . | . . . . . Secondary . | . . . . . Self-Inflicted Damage 28 | . . 28 . . Shots 1 | . . 1 . . Rammed . | . . . . . Targets Rammed . | . . . . . Kicked . | . . . . . Crushed . | . . . . . Highest Temperature 408 | . 408 221 190 238 Average Temperature 94 | . 114 54 42 166 Received Heat Transfer 822 | . 210 480 60 72 Effects 1 | . 1 . . . Shutdowns 1 | . 1 . . . Siege Activations . | . . . . . Robots Corrupted . | . . . . . Combat Hostiles . | . . . . . Parts Fried . | . . . . . Impact Corruptions . | . . . . . Robots Melted 2 | . . 2 . . Combat Hostiles 2 | . . 2 . . Parts Melted 28 | . 10 18 . . Heat Transferred 8549 | . 1667 5698 888 296 Parts Sabotaged . | . . . . . Parts Stolen . | . . . . . Parts Stripped . | . . . . . Power Chain Reactions 2 | . 2 . . . Alert | -11 -10 -9 -9 -9 ------- Run | Yrd Mat Mat Sto Gar Peak Influence 658 | . 186 658 602 276 Initial 261 | . . 61 206 261 Average 294 | . 85 388 385 166 Maximum Alert Level 2 | . . 2 2 1 Low Security (%) 40 | . 100 16 . 72 Level 1 22 | . . 25 59 27 Level 2 37 | . . 57 40 . Level 3 . | . . . . . Level 4 . | . . . . . Level 5 . | . . . . . High Security . | . . . . . Max Security . | . . . . . Squads Dispatched 9 | . 1 5 3 . Investigation 3 | . 1 2 . . Extermination . | . . . . . Reinforcement 5 | . . 3 2 . Assault 1 | . . . 1 . Garrison . | . . . . . Intercept . | . . . . . Searches Triggered . | . . . . . Construction Impeded 1 | . . 1 . . Haulers Reinforced . | . . . . . Active Scanning Responses . | . . . . . Cargo Convoy Interrupts . | . . . . . Stealth | -11 -10 -9 -9 -9 --------- Run | Yrd Mat Mat Sto Gar Distress Signals 7 | . 3 4 . . Communications Jammed . | . . . . . Distress Signals . | . . . . . Times Spotted 98 | . 27 55 10 6 Peak Tracking Total 6 | . 5 5 4 6 Tactical Retreats 6 | . 2 4 . . Traps | -11 -10 -9 -9 -9 ------- Run | Yrd Mat Mat Sto Gar Traps Triggered 4 | . 2 2 . . Indirectly . | . . . . . Trap Hack Attempts . | . . . . . Triggered . | . . . . . Disarmed . | . . . . . Reprogrammed . | . . . . . Reused . | . . . . . Traps Extracted . | . . . . . Installed . | . . . . . Triggered . | . . . . . Machines | -11 -10 -9 -9 -9 ---------- Run | Yrd Mat Mat Sto Gar Machines Disabled 1 | . . 1 . . Max in Single Turn 1 | . . 1 . . Machines Repaired . | . . . . . Machines Dismantled . | . . . . . Machines Sabotaged . | . . . . . Overloaded Fab Kills . | . . . . . Hacking | -11 -10 -9 -9 -9 --------- Run | Yrd Mat Mat Sto Gar Machines Accessed 25 | . 7 13 5 . Terminals 16 | . 4 9 3 . Fabricators . | . . . . . Repair Stations 3 | . 1 1 1 . Recycling Units 3 | . 2 1 . . Scanalyzers 2 | . . 2 . . Garrison Access 1 | . . . 1 . Total Hacks 71 | . 16 43 12 . Successful 42 | . 11 25 6 . Failed 29 | . 5 18 6 . Catastrophic 3 | . . 3 . . Database Lockouts . | . . . . . Manual 15 | . 5 9 1 . Terminals 44 | . 12 26 6 . Fabricators . | . . . . . Repair Stations 8 | . 1 2 5 . Recycling Units 5 | . 3 2 . . Scanalyzers 13 | . . 13 . . Garrison Access 1 | . . . 1 . Terminal Hacks 15 | . 8 4 3 . Prototype ID Bank 2 | . 1 . 1 . Open Door 1 | . . . 1 . Terminal Index 1 | . . 1 . . Alert Level 1 | . 1 . . . Unreport Threat 6 | . 4 2 . . Hauler Manifests 1 | . 1 . . . Zone Layout 3 | . 1 1 1 . Fabricator Hacks . | . . . . . Repair Station Hacks 4 | . . 2 2 . Scan Component 2 | . . 1 1 . Repair 2 | . . 1 1 . Recycling Unit Hacks 1 | . . 1 . . Retrieve Components 1 | . . 1 . . Scanalyzer 13 | . . 13 . . Insert Component 6 | . . 6 . . Analyze 7 | . . 7 . . Garrison Access Hacks 1 | . . . 1 . Unlock Access 1 | . . . 1 . Unauthorized Hacks 8 | . 3 5 . . Terminals 5 | . 1 4 . . Botnet 4 | . . 4 . . Operators 1 | . 1 . . . Fabricators . | . . . . . Repair Stations . | . . . . . Recycling Units 3 | . 2 1 . . Reject 3 | . 2 1 . . Scanalyzers . | . . . . . Garrison Access . | . . . . . Data Cores Recovered 1 | . 1 . . . Used . | . . . . . Hacking Detections 20 | . 6 12 2 . Full Trace Events 4 | . . 4 . . Feedback Events . | . . . . . Feedback Blocked . | . . . . . Robot Schematics Acquired . | . . . . . Robots Built . | . . . . . Authchips . | . . . . . Time . | . . . . . Total Robot Build Rating . | . . . . . Part Schematics Acquired 5 | . . 5 . . Parts Built . | . . . . . Authchips . | . . . . . Time . | . . . . . Total Part Build Rating . | . . . . . Parts Repaired 2 | . . 1 1 . Time 77 | . . 26 51 . Parts Recycled . | . . . . . Recycled Matter . | . . . . . Retrieved Matter . | . . . . . Retrieved Components 10 | . . 10 . . Parts Scanalyzed 5 | . . 5 . . Part Schematics Acquired 5 | . . 5 . . Parts Damaged . | . . . . . Bothacking | -11 -10 -9 -9 -9 ------------ Run | Yrd Mat Mat Sto Gar Used RIF Installer . | . . . . . Robots Hacked . | . . . . . Non-combat . | . . . . . Combat . | . . . . . Robot Hacks Applied . | . . . . . Relay Couplers Released . | . . . . . Fabnet Peak Effective % . | . . . . . Robots Rewired . | . . . . . Allies Hacked . | . . . . . Hacks Repelled . | . . . . . Allies | -11 -10 -9 -9 -9 -------- Run | Yrd Mat Mat Sto Gar Total Allies 10 | . . . 10 . Largest Group 10 | . . . 10 9 Highest-Rated Group 88 | . . . 88 80 Highest-Rated Ally 16 | . . . 16 16 Total Orders . | . . . . . Ally Attacks 55 | . . . 42 13 Total Damage 362 | . . . 320 42 Kills 9 | . . . 8 1 Allies Corrupted . | . . . . . Allies Melted . | . . . . . Intel | -11 -10 -9 -9 -9 ------- Run | Yrd Mat Mat Sto Gar Robot Analysis Total . | . . . . . Derelict Logs Recovered . | . . . . . Drone Launches . | . . . . . Drone Recoveries . | . . . . . Exploration | -11 -10 -9 -9 -9 ------------- Run | Yrd Mat Mat Sto Gar Turns Passed 3656 | . 1085 2108 402 61 Spaces Moved 2055 | 1 625 1190 224 15 Core . | . . . . . Treads . | . . . . . Legs 741 | 1 625 115 . . Wheels 1314 | . . 1075 224 15 Hover . | . . . . . Flight . | . . . . . Fastest Speed 110 | 120 120 110 115 115 Average Speed 119 | 120 120 120 115 115 Slowest Speed 190 | 120 190 190 115 120 Overloaded Moves . | . . . . . Propulsion Burnouts . | . . . . . Robots Hopped . | . . . . . Cave-ins Triggered . | . . . . . Exploration Rate (%) 44 | 1 89 85 41 5 Regions Visited 4 Branch Regions 1 Pre-discovered Areas . | . . . . . Known Exits Taken 3 | . 1 1 1 . Unknown Exits Taken 1 | 1 . . . . Scrap Searched . | . . . . . Spaces Dug . | . . . . . Terrain Destroyed 67 | . 5 62 . . Melee . | . . . . . Projectile . | . . . . . AOE 67 | . 5 62 . . Terrain Rammed . | . . . . . Walls Destroyed . | . . . . . Machines Disabled . | . . . . . Actions | -11 -10 -9 -9 -9 --------- Run | Yrd Mat Mat Sto Gar Total 2831 | . 834 1621 331 45 Wait 435 | . 105 233 77 20 Move 2052 | . 624 1189 224 15 Hop . | . . . . . Pick Up 38 | . 12 23 3 . Fast Attach 12 | . 6 4 2 . Attach 12 | . 2 8 . 2 Detach 1 | . . 1 . . Swap 18 | . 3 14 1 . Drop 32 | . 13 16 3 . Fire 229 | . 69 133 19 8 Melee . | . . . . . Ram . | . . . . . Kick . | . . . . . Crush . | . . . . . Escape Stasis . | . . . . . Rewire 2 | . . . 2 . Trap . | . . . . . Miscellaneous . | . . . . . Route ------- -11/Scrapyard -10/Materials (discovered 5 exits: *Mat x3 / [*Min x2]) -9/Materials (discovered 5 exits: *Mat x3 / [*Min] / *Sto) -9/Storage (discovered 2 exits: *Mat / Gar) -9/Garrison History --------- Turn | Location | Event 1 | -11/Scrapyard | Discovered new exit (range 0) 1 | -11/Scrapyard | Entered Materials 1 | -10/Materials | Discovered new exit (range 7) 308 | -10/Materials | Build established: Mutant 488 | -10/Materials | Discovered new exit (range 7) 745 | -10/Materials | Discovered new exit (range 4) 821 | -10/Materials | Discovered new exit (range 16) 952 | -10/Materials | Discovered new exit (range 5) 1084 | -10/Materials | Identified exit to Materials 1086 | -10/Materials | Entered another Materials area 1086 | -9/Materials | Evolved 2 slots: Utility x2 1553 | -9/Materials | Discovered new exit (range 4) 1685 | -9/Materials | Repaired Lgt. Ion Engine 1729 | -9/Materials | Discovered new exit (range 6) 1845 | -9/Materials | Discovered new exit (range 15) 2050 | -9/Materials | Discovered new exit (range 10) 2574 | -9/Materials | Core integrity fell below 50% 2639 | -9/Materials | Discovered new exit (range 10) 3109 | -9/Materials | Identified exit to Materials 3192 | -9/Materials | Identified exit to Storage 3194 | -9/Materials | Entered Storage 3263 | -9/Storage | Repaired Imp. Medium Laser 3346 | -9/Storage | Assisted by bots powering up and referring to "LRC-V3" 3554 | -9/Storage | Discovered exit to Materials (range 6) 3589 | -9/Storage | Identified exit to Garrison 3594 | -9/Storage | First assault squad dispatched 3596 | -9/Storage | Entered Garrison 3596 | -9/Garrison | Accompanied by 9 allies 3606 | -9/Garrison | Core integrity fell below 20% 3657 | -9/Garrison | Destroyed by Y-45 Defender with Beam Rifle Last Messages --------------- 03613_ Mercenary 2d destroyed. 03619_ P-60 Hacker resets Y-45 Defender, system corruption cleaned. 03619_ Mercenary 2a destroyed. 03622_ Mercenary 2i destroyed. 03623_ Mercenary 2b destroyed. 03627_ KG|H &DRQB8UJVZI WZTXHVYTN0K 03628_ Mercenary 2h Aluminum Leg severed. 03629_ P-60 Hacker resets Y-45 Defender, system corruption cleaned. 03631_ Mercenary 2h destroyed. 03632_ C-17 Slicer destroyed. 03632_ Mercenary 2f destroyed. 03641_ Arm. Wheel destroyed. 03642_ C-17 Slicer suffers critical hit (Burn). 03643_ System corrupted: Heat flow error (+241). 03645_ Wheel destroyed. 03650_ Critical hit (Burn: +37). 03651_ C-17 Slicer destroyed. 03655_ Acquired 10 matter. Map ----- +----------------------------------------------------+ | ?????????????????????????????????????????????? | | ?????????????????????????????????????????????? | | ?????????????????????????????????????????????? | | ?????????????????????????????????????????????? | | ?????????????????????????????????????????????? | | ?????????????????????????????????????????????? | | ?????????????????????????????????????????????? | | ?????????????????????????????????????????????? | | ?????????????????????????????????????????????? | | ?????????????????????????????????????????????? | | ?????????????????????????????????????????????? | | ?????????????????????????????????????????????? | | ?????????????????????????????????????????????? | | ?????????????????????????????????????????????? | | ?????????????????????????????????????????????? | | ?????????????????????????????????????????????? | | ?????????????????????????????????????????????? | | ?????????????????????????????????????????????? | | ??????????????????######?????????????????????? | | ??????????????????# #?????????????????????? | | ???????? ????????# #?????????????????????? | | ????" """""####??# !=*#?????????????????????? | | ???"" ! ?###[!#?????????????????????? | | ???"" !%*[####=*#?????????????????????? | | ???"" [*%%pY[*#?????????????????????? | | ???????"""""#+#######@%#?????????????????????? | | ????????????????????#!=#?????????????????????? | | ????????????????????#= #?????????????????????? | | ????????????????????# ?????????????????????? | | ????????????????????# ????????????????????? | | ????????????????????######???????????????????? | | ?????????????????????????????????????????????? | | ?????????????????????????????????????????????? | | ?????????????????????????????????????????????? | | ?????????????????????????????????????????????? | | ?????????????????????????????????????????????? | | ?????????????????????????????????????????????? | | ?????????????????????????????????????????????? | | ?????????????????????????????????????????????? | | ?????????????????????????????????????????????? | | ?????????????????????????????????????????????? | | ?????????????????????????????????????????????? | | ?????????????????????????????????????????????? | | ?????????????????????????????????????????????? | | ?????????????????????????????????????????????? | | ?????????????????????????????????????????????? | | ?????????????????????????????????????????????? | | ?????????????????????????????????????????????? | | ?????????????????????????????????????????????? | | ?????????????????????????????????????????????? | +----------------------------------------------------+ Best States ------------- Heat Dissipation 50 Energy Generation 14 Energy Capacity 280 Matter Stores 300 Matter Capacity 300 Sight Range 16 Terrain Scan Density 10 Armor Coverage 150 Evasion (%) 55 Authchip Count 1 Item Schematics ----------------- Lgt. Assault Rifle | -9/Materials | Scanalyzed Arm. Wheel | -9/Materials | Scanalyzed Hrd. Light Armor Plating | -9/Materials | Scanalyzed Hacking Suite | -9/Materials | Scanalyzed Cld. Ion Engine | -9/Materials | Scanalyzed Robot Schematics ------------------ None Fabricated ------------ Nothing Alien Tech Used ----------------- None Achievements -------------- None Challenges ------------ None Game ------ Seed ThrusterNavigationAutohacker Manual? 0 Play Time 00:28:31 Cumulative 92.2 hours Start 2024.08.15 @ 13:22:18 End 2024.08.15 @ 13:50:35 Sessions 1 Manual Loads 0 Difficulty Rogue Special Mode None Game No. 109 Rogue 109 Adventurer 0 Explorer 0 Win Type - Total 0 Types 0/0/0/0/0/0/0/0/0 Lore% 45 Gallery% 56 Achievement% 53 Wizard Run 0 Options --------- Layout 1 ASCII 0 Keyboard 0 Movement Mouse Keybinds 0 Fullscreen 1 Font 32/SmallcapsGlow Map View 50x35 Zoom Use 0% Tactical HUD 1 Map Filters NONE Filters NONE Steam 1 RUN: 6b200d27-1ca0-40e1-b9b6-0b7b4ba81098